Cogmind - Beta 14 @@@ ROGUE MODE // 2024.10.15 @ 10:54:33 Player: Ae Result: Destroyed by S-10 Pest with Light Assault Rifle Performance ------------- Evolutions (0) 0 Regions Visited (2) 400 Robots Destroyed (30) 150 Value Destroyed (944) 944 Prototype IDs (12) 240 Alien Tech Used (0) 0 Bonus (0) 0 TOTAL SCORE: 1734 Bonus ------- None Cogmind --------- Core Integrity 0/250 Matter 294/300 Energy 178/200 System Corruption 0% Temperature Cool (0) Movement Rolling (130) Ox2 Location -10/Subcaves Parts ------- > --- POWER (1) -------- Subdweller Power Source > --- PROPULSION (2) --- Light Treads Subdweller Monowheel > --- UTILITY (2) ------ Disposable Heat Sink High-capacity Storage Unit > --- WEAPON (2) ------- Subdweller Laser Subdweller Machine Gun > --- INVENTORY (20) --- Subdweller Power Source Light Nuclear Core Meta Core Huge Storage Unit High-capacity Matter Pod (200) Subdweller Optics Subdweller Optics Subdweller Optics Hacking Suite Subdweller Beam Cannon Subdweller Beam Cannon Heavy Assault Rifle Heavy Assault Rifle Subdweller Machine Gun Subdweller Machine Gun Subdweller Shrapnel Launcher Dirty Datajack (20) Datajack Ripper Peak State ------------ > --- POWER ------------ Light Nuclear Core > --- PROPULSION ------- Light Treads Compact Wheel > --- UTILITY ---------- High-capacity Storage Unit Improved Terrain Scanner > --- WEAPON ----------- Improved Medium Laser Improved Light Cannon > --- INVENTORY -------- Ion Engine Subdweller Power Source Meta Core Light Treads Subdweller Monowheel Disposable Heat Sink Disposable Heat Sink Huge Storage Unit High-capacity Matter Pod Subdweller Optics Subdweller Optics Hacking Suite Improved Medium Laser Heavy Assault Rifle Heavy Assault Rifle Subdweller Machine Gun Improved Light Cannon Improved Light Cannon Datajack Ripper [Rating: 19] Favorites ----------- Power Light Nuclear Core Engine Subdweller Power Source Power Core Light Nuclear Core Propulsion Light Treads Treads Light Treads Wheel Compact Wheel Utility High-capacity Storage Unit Device Seismic Detector Storage High-capacity Storage Unit Weapon Improved Medium Laser Energy Gun Improved Medium Laser Ballistic Gun Subdweller Machine Gun Ballistic Cannon Improved Light Cannon Slashing Weapon Ripper Build | -11 -10 -10 ------- Run | Yrd Mat Sub Slots Evolved . | . . . Power . | . . . Propulsion . | . . . Utility . | . . . Weapon . | . . . Parts Attached 43 | 8 18 17 Power 5 | 1 3 1 Engine 2 | 1 . 1 Core 3 | . 3 . Reactor . | . . . Propulsion 12 | 2 5 5 Treads 7 | 2 3 2 Leg . | . . . Wheel 5 | . 2 3 Hover . | . . . Flight . | . . . Utility 10 | 2 3 5 Device 7 | 1 1 5 Storage 3 | 1 2 . Processor . | . . . Hackware . | . . . Protection . | . . . Artifact . | . . . Weapon 16 | 3 7 6 Energy Gun 9 | 2 4 3 Energy Cannon . | . . . Ballistic Gun 2 | 1 . 1 Ballistic Cannon 4 | . 3 1 Launcher . | . . . Special Weapon . | . . . Impact Weapon . | . . . Slashing Weapon 1 | . . 1 Piercing Weapon . | . . . Special Melee Weapon . | . . . Unidentified Prototypes 1 | . 1 . Parts Lost 10 | . . 10 Power . | . . . Propulsion 4 | . . 4 Utility 4 | . . 4 Weapon 2 | . . 2 Highest Loss Streak 3 | . . 3 To Critical Strikes . | . . . Average Slot Usage (%) 98 | . 99 98 Engine 3 | . 3 3 Core 10 | . 10 10 Treads 12 | . 15 10 Wheel 14 | . 12 15 Device 13 | . 13 13 Storage 14 | . 14 14 Energy Gun 13 | . 13 13 Ballistic Gun 1 | . . 1 Ballistic Cannon 12 | . 13 12 Peak Build Rating 19 | 7 14 19 Average Rating 14 | 5 12 15 On Entrance 7 | . 7 14 Naked Turns . | . . . Heaviest Build 54 | 15 53 54 Greatest Support 40 | 40 40 20 Greatest Overweight (x) 3 | . 3 3 Average Overweight (x) 2 | . 1 2 Largest Inventory Capacity 20 | 8 20 20 Average Capacity 17 | 7 14 20 Most Carried 20 | 5 13 20 Average Carried 13 | 3 8 16 Final Capacity 20 | 8 20 20 Final Carried 19 | 5 13 19 Class Distribution -------------------- 100% | Mutant Dominant Class ---------------- Mutant | -10/Materials Mutant | -10/Subcaves Resources | -11 -10 -10 ----------- Run | Yrd Mat Sub Matter Collected 1329 | 304 665 360 Remotely . | . . . Salvage Created 1021 | 130 525 366 Parts 57 | 8 29 20 Haulers Intercepted 1 | . 1 . Recyclers Shooed 1 | . 1 . Parts Field Recycled . | . . . Retrieved Matter . | . . . Parts Self-Destructed . | . . . Prevented . | . . . Kills | -11 -10 -10 ------- Run | Yrd Mat Sub Combat Hostiles Destroyed 23 | . 13 10 Guns 14 | . 4 10 Cannons 9 | . 9 . Classes Destroyed 9 | 2 4 3 Tunneler 2 | 2 . . Hauler 1 | . 1 . Recycler 1 | 1 . . Operator 1 | . 1 . Watcher 2 | . 2 . Swarmer 1 | . . 1 Grunt 13 | . 13 . Cobbler 1 | . . 1 Subdweller 9 | . . 9 Best Kill Streak 3 | 3 2 2 Combat Bots Only 2 | . 2 2 Max Kills in Single Turn 1 | 1 1 1 Gunslinging . | . . . Exploded . | . . . Melee . | . . . Uniques/NPCs Destroyed . | . . . Combat | -11 -10 -10 -------- Run | Yrd Mat Sub Hostile Shots Fired 94 | . 37 57 Missed 22 | . 12 10 Damage Taken 1448 | . 355 1093 Core 258 | . 48 210 Absorbed by Shields . | . . . Core Remaining (%) 100 | 100 . . Volleys Fired 148 | 8 72 68 Largest 2 | 2 2 2 Hottest 95 | 70 95 95 Shots Fired 229 | 16 111 102 Gun 109 | 16 42 51 Cannon 120 | . 69 51 Launcher . | . . . Special . | . . . Kinetic 148 | 8 72 68 Thermal 81 | 8 39 34 Explosive . | . . . Electromagnetic . | . . . Robot Hit Streak 28 | 4 4 28 Robot Miss Streak 3 | 1 3 1 Penetration Max . | . . . Secondary Targets . | . . . Shots Hit Robots 106 | 10 43 53 Core Hits 47 | 4 22 21 Critical Kills . | . . . Critical Parts Destroyed . | . . . Critical Strikes 7 | . 3 4 Burn 5 | . 2 3 Blast 2 | . 1 1 Melee Attacks . | . . . Impact . | . . . Slashing . | . . . Piercing . | . . . Sneak Attacks . | . . . Combat Hostiles . | . . . Follow-up Attacks . | . . . Damage Inflicted 2003 | 134 857 1012 Guns 1133 | 134 289 710 Cannons 866 | . 568 298 Explosions . | . . . Melee . | . . . Ramming 4 | . . 4 Kinetic 1217 | 59 596 562 Thermal 782 | 75 261 446 Explosive . | . . . Electromagnetic . | . . . Impact . | . . . Slashing . | . . . Piercing . | . . . Highest Corruption . | . . . Average Corruption . | . . . Corruption Purged . | . . . Corruption Blocked . | . . . Overload Shots . | . . . Overflow Damage . | . . . Projectiles . | . . . Explosions . | . . . Melee . | . . . Knockbacks 8 | . 5 3 Impact . | . . . Kinetic 8 | . 5 3 Secondary . | . . . Self-Inflicted Damage 2 | . . 2 Shots . | . . . Rammed 2 | . 1 1 Targets Rammed 2 | . 1 1 Kicked . | . . . Crushed . | . . . Highest Temperature 198 | 72 198 . Average Temperature 48 | 37 49 . Received Heat Transfer 270 | . 180 90 Siege Activations . | . . . Robots Corrupted . | . . . Combat Hostiles . | . . . Parts Fried . | . . . Impact Corruptions . | . . . Robots Melted . | . . . Combat Hostiles . | . . . Parts Melted 1 | . . 1 Heat Transferred 2122 | 222 740 1160 Parts Sabotaged . | . . . Parts Stolen . | . . . Parts Stripped . | . . . Power Chain Reactions . | . . . Alert | -11 -10 -10 ------- Run | Yrd Mat Sub Peak Influence 215 | 15 215 . Initial 9 | . 9 . Average 89 | 5 95 . Maximum Alert Level 1 | . 1 . Low Security (%) 98 | 100 97 . Level 1 1 | . 2 . Level 2 . | . . . Level 3 . | . . . Level 4 . | . . . Level 5 . | . . . High Security . | . . . Max Security . | . . . Squads Dispatched 3 | . 3 . Investigation 2 | . 2 . Extermination . | . . . Reinforcement 1 | . 1 . Assault . | . . . Garrison . | . . . Intercept . | . . . Searches Triggered . | . . . Construction Impeded . | . . . Haulers Reinforced . | . . . Active Scanning Responses . | . . . Cargo Convoy Interrupts . | . . . Stealth | -11 -10 -10 --------- Run | Yrd Mat Sub Distress Signals 1 | . 1 . Communications Jammed . | . . . Distress Signals . | . . . Times Spotted 38 | . 25 13 Peak Tracking Total 4 | . 4 4 Tactical Retreats 5 | . 3 2 Traps | -11 -10 -10 ------- Run | Yrd Mat Sub Traps Triggered 10 | . 8 2 Indirectly . | . . . Trap Hack Attempts . | . . . Triggered . | . . . Disarmed . | . . . Reprogrammed . | . . . Reused . | . . . Traps Extracted . | . . . Installed . | . . . Triggered . | . . . Machines | -11 -10 -10 ---------- Run | Yrd Mat Sub Machines Disabled 2 | . 1 1 Max in Single Turn 1 | . 1 1 Machines Repaired . | . . . Machines Dismantled . | . . . Machines Sabotaged . | . . . Overloaded Fab Kills . | . . . Hacking | -11 -10 -10 --------- Run | Yrd Mat Sub Machines Accessed 4 | . 2 2 Terminals 1 | . 1 . Fabricators . | . . . Repair Stations . | . . . Recycling Units 1 | . 1 . Scanalyzers . | . . . Garrison Access . | . . . Total Hacks 10 | . 5 5 Successful 8 | . 3 5 Failed 2 | . 2 . Catastrophic 1 | . 1 . Database Lockouts . | . . . Manual 5 | . 5 . Terminals 3 | . 3 . Fabricators . | . . . Repair Stations . | . . . Recycling Units 2 | . 2 . Scanalyzers . | . . . Garrison Access . | . . . Terminal Hacks 5 | . . 5 Record 4 | . . 4 Derelict Proto ID Bank 1 | . . 1 Fabricator Hacks . | . . . Repair Station Hacks . | . . . Recycling Unit Hacks . | . . . Scanalyzer . | . . . Garrison Access Hacks . | . . . Unauthorized Hacks 3 | . 3 . Terminals 1 | . 1 . Skim 1 | . 1 . Fabricators . | . . . Repair Stations . | . . . Recycling Units 2 | . 2 . Reject 1 | . 1 . Recyclers 1 | . 1 . Scanalyzers . | . . . Garrison Access . | . . . Data Cores Recovered . | . . . Used . | . . . Hacking Detections 1 | . 1 . Full Trace Events 1 | . 1 . Feedback Events . | . . . Feedback Blocked . | . . . Robot Schematics Acquired . | . . . Robots Built . | . . . Authchips . | . . . Time . | . . . Total Robot Build Rating . | . . . Part Schematics Acquired . | . . . Parts Built . | . . . Authchips . | . . . Time . | . . . Total Part Build Rating . | . . . Parts Repaired . | . . . Time . | . . . Parts Recycled . | . . . Recycled Matter . | . . . Retrieved Matter . | . . . Retrieved Components . | . . . Parts Scanalyzed . | . . . Part Schematics Acquired . | . . . Parts Damaged . | . . . Bothacking | -11 -10 -10 ------------ Run | Yrd Mat Sub Used RIF Installer . | . . . Robots Hacked . | . . . Non-combat . | . . . Combat . | . . . Robot Hacks Applied . | . . . Relay Couplers Released . | . . . Fabnet Peak Effective % . | . . . Robots Rewired . | . . . Allies Hacked . | . . . Hacks Repelled . | . . . Allies | -11 -10 -10 -------- Run | Yrd Mat Sub Total Allies . | . . . Largest Group . | . . . Highest-Rated Group . | . . . Highest-Rated Ally . | . . . Total Orders . | . . . Ally Attacks . | . . . Total Damage . | . . . Kills . | . . . Allies Corrupted . | . . . Allies Melted . | . . . Intel | -11 -10 -10 ------- Run | Yrd Mat Sub Robot Analysis Total . | . . . Derelict Logs Recovered 2 | . . 2 Drone Launches . | . . . Drone Recoveries . | . . . Exploration | -11 -10 -10 ------------- Run | Yrd Mat Sub Turns Passed 4902 | 135 1855 2912 Spaces Moved 2992 | 61 1079 1852 Core 2 | 2 . . Treads 336 | 59 272 5 Legs . | . . . Wheels 2654 | . 807 1847 Hover . | . . . Flight . | . . . Fastest Speed 50 | 50 115 130 Average Speed 145 | 156 145 144 Slowest Speed 320 | 160 320 320 Overloaded Moves . | . . . Propulsion Burnouts . | . . . Robots Hopped . | . . . Cave-ins Triggered . | . . . Exploration Rate (%) 61 | 4 97 84 Regions Visited 2 Branch Regions 1 Pre-discovered Areas 3 | . . 3 Known Exits Taken . | . . . Unknown Exits Taken 2 | 1 1 . Scrap Searched 5 | . . 5 Spaces Dug 11 | . 4 7 Terrain Destroyed 15 | . 7 8 Melee . | . . . Projectile 15 | . 7 8 AOE . | . . . Terrain Rammed . | . . . Walls Destroyed . | . . . Machines Disabled . | . . . Actions | -11 -10 -10 --------- Run | Yrd Mat Sub Total 3324 | 81 1252 1991 Wait 86 | . 59 27 Move 2990 | 60 1078 1852 Hop . | . . . Pick Up 39 | 5 14 20 Fast Attach 17 | 7 8 2 Attach 14 | . 4 10 Detach 2 | . 2 . Swap 12 | 1 6 5 Drop 14 | . 8 6 Fire 148 | 8 72 68 Melee . | . . . Ram 1 | . . 1 Kick . | . . . Crush 1 | . 1 . Escape Stasis . | . . . Rewire . | . . . Trap . | . . . Miscellaneous . | . . . Route ------- -11/Scrapyard -10/Materials (discovered 5 exits: [*Mat x3] / [*Min] / *Sub) -10/Subcaves (discovered 2 exits: [*Mat x2]) History --------- Turn | Location | Event 9 | -11/Scrapyard | Discovered new exit (range 16) 136 | -11/Scrapyard | Entered Materials 318 | -10/Materials | Build established: Mutant 653 | -10/Materials | Discovered new exit (range 13) 805 | -10/Materials | Discovered new exit (range 14) 827 | -10/Materials | Discovered new exit (range 11) 836 | -10/Materials | Derelicts attacked the area 870 | -10/Materials | Discovered new exit (range 12) 1347 | -10/Materials | Discovered new exit (range 15) 1991 | -10/Materials | Entered Subcaves 2018 | -10/Subcaves | Learned location of Storage (-8) 2492 | -10/Subcaves | Visited Clippyterm 2496 | -10/Subcaves | Learned Research security intel 2705 | -10/Subcaves | Discovered new exit (range 14) 2843 | -10/Subcaves | Learned location of Zion (-6) 2843 | -10/Subcaves | Met a Zionite searching for "candidates" 3209 | -10/Subcaves | Discovered new exit (range 7) 3435 | -10/Subcaves | Visited 4L-MR0's lab 3455 | -10/Subcaves | Found Meta Core 4611 | -10/Subcaves | Core integrity fell below 50% 4612 | -10/Subcaves | Ambushed by Subdweller buried in earth 4665 | -10/Subcaves | Lost 3 parts (1n1u1w) 4765 | -10/Subcaves | Core integrity fell below 20% 4820 | -10/Subcaves | Lost 3 parts (1n1u1w) 4903 | -10/Subcaves | Destroyed by S-10 Pest with Light Assault Rifle Last Messages --------------- 04710_ Acquired 39 matter. 04713_ Acquired Sub. Beam Cannon. 04715_ Acquired Dirty Datajack. 04758_ Imp. Medium Laser destroyed. 04759_ 31-QAM(R) destroyed. 04772_ LY-WOZ(R) destroyed. 04775_ Acquired 24 matter. 04779_ Acquired Sub. Machine Gun. 04785_ Triggered Piercing Trap. 04785_ Spikes shoot up from the floor. 04785_ Sub. Monowheel destroyed. 04789_ Triggered Shrapnel Trap. 04789_ An expanding cloud of shrapnel blasts out in all directions. 04789_ Disposable Heat Sink destroyed. 04799_ Acquired 5 matter. 04817_ Acquired Disposable Heat Sink. 04820_ Acquired 10 matter. 04880_ S-10 Pest destroyed. 04890_ Acquired 2 matter. 04902_ Destroyed Flight Unit. Map ----- +----------------------------------------------------+ | ????????????????###????????????? ??????????? | | ???????????????## #????????????? ?????????? | | ???????????????## #???????????? ?????????? | | ???????????##### ######??????? ?????????? | | ##?##???????# #????### ???????????? | | ## #???????# ## ##??? ????????????? | | #???????### #### #??? #?????????????? | | """##????????## #??## #### #??? ?????????? | | """"##???????# #???# # #??? #?????????? | | #???????## #???# #??? #?????????? | | ## #??????# #???# #### #?????????? | | ##? #??##### #???## # #?????????? | | #??? #?##%%## ##???## % #?????????? | | #?##?# ### #????##% #?????????? | | ### ## ## # ##?????## #?????????? | | " # % ###??????## ##?????????? | | ##"## % ######### % #??????????? | | #???# ## #### #??????????? | | ##### ## ## %#???? #??????????? | | ## ### ## ###??? ?????????? | | ### ### ### ### #????????? | | ## #### ## ### #????????? | | # # # #### ##?### #???????? | | & ##???# ##????# #??????? | | ##?????###????## #?????? | | ## &|%##????????????# @ ### ## ?????? | | ### ## &##???????????###ss #??###?? ??????? | | #?###### ##???????????##%& ##???????????????? | | #????## ##??????????#& & #????????????????? | | ????## ##??????% #?????????????? | | ???## #" #?? % #????????????? | | ???# ### #?#"" #????????????? | | ???# ### ###" ## # # ###????????????? | | ???# ## " ##" ?### %######??????????????? | | ???###?##" ##""" ???? #???????????????????? | | ????????#" ######????? #???????????????????? | | ???????##"" "##?????????? % #???????????????????? | | ???????# %" "##???????????? ##???????????????????? | | ???????##"" #????????????? ????????????????????? | | ???????## " ###??????????? ????????????????????? | | ??????##" "#???????????? ????????????????????? | | ?????## " ! #???????????? ????????????????????? | | ?????# ! "##???????????? ????????????????????? | | ?????# "##???????????? ????????????????????? | | ?????# #?????????????????????????????????? | | ?????# %###???????????????????????????????? | | ###??# " ###?????????????????????????????? | | #"#?## #???#####?????????????????????? | | ## # #??# #?????????????????????? | | "# %#### %#?????????????????????? | +----------------------------------------------------+ Best States ------------- Heat Dissipation 25 Coolant Potential 50 Energy Generation 14 Energy Capacity 250 Matter Stores 300 Matter Capacity 300 Sight Range 21 Terrain Scan Range 16 Terrain Scan Density 10 Evasion (%) 40 Recoil Reduction 2 Item Schematics ----------------- None Robot Schematics ------------------ None Fabricated ------------ Nothing Alien Tech Used ----------------- None Achievements -------------- None Challenges ------------ None Game ------ Seed SensorMatterBattery Manual? 0 Play Time 00:38:45 Cumulative 81.1 hours Start 2024.10.15 @ 10:08:24 End 2024.10.15 @ 10:54:33 Sessions 1 Manual Loads 0 Difficulty Rogue Special Mode None Game No. 132 Rogue 104 Adventurer 28 Explorer 0 Win Type - Total 0 Types 0/0/0/0/0/0/0/0/0 Lore% 27 Gallery% 30 Achievement% 32 Wizard Run 0 Options --------- Layout 0 ASCII 0 Keyboard 1 Movement Numpad Keybinds 0 Fullscreen 2 Font 36/Smallcaps Map View 76x50 Zoom Use 0% Tactical HUD 1 Map Filters NONE Filters NONE Steam 1 RUN: 1768d694-4907-4e0d-b7b0-7f2f4e0f7108